bitfinex/quotes_ETHUSD_20251122
["timestamp","ask_amount","ask_price","bid_price","bid_amount"]
[1763811149537,1.25032741,2740.8,2740.7,0.4887]
[1763811150629,1.25064973,2740.8,2740.7,0.4887]
[1763811152036,1.72174973,2740.8,2740.4,0.124]
[1763811152337,0.8875629,2740.7,2740.4,0.124]
[1763811152549,0.34165709,2740.6,2740.4,0.124]
[1763811152735,0.34165709,2740.7,2740.5,0.4887]
[1763811152941,1.37809264,2740.5,2740.4,0.124]
[1763811153139,1.37809264,2740.5,2740.3,0.001]
[1763811153140,1.71974973,2740.5,2740.3,0.001]
[1763811153437,1.03725709,2740.4,2740.3,0.001]
[1763811153604,1.6054129,2740.4,2740.3,0.001]
[1763811154248,2.0109169,2740.4,2740.3,0.001]
[1763811157749,2.01097138,2740.4,2740.3,0.001]
[1763811157954,1.55167138,2740.4,2740.3,0.001]
[1763811158159,2.01457138,2740.4,2740.3,0.001]
[1763811158320,0.34171157,2740.4,2740.3,0.9507]
[1763811158656,0.405504,2740.7,2740.3,0.9507]
[1763811158817,0.34171157,2740.6,2740.4,0.4674]
[1763811159018,0.34371157,2740.8,2740.7,0.4823]
[1763811159557,1.25070421,2740.8,2740.7,0.9497]
[1763811159756,1.25070421,2740.8,2740.7,0.4823]
[1763811160274,0.34371157,2740.8,2740.7,0.4823]
[1763811160439,1.25070421,2740.8,2740.7,0.4823]
[1763811161786,1.25070421,2740.8,2740.7,0.9497]
[1763811161787,0.34371157,2740.8,2740.7,0.9497]
[1763811162090,0.002,2740.8,2740.7,0.9497]
[1763811164884,0.002,2740.8,2740.7,0.4823]
[1763811165465,0.002,2740.8,2740.7,0.9497]
[1763811166697,0.002,2740.8,2740.7,0.4823]
[1763811167300,0.34361053,2740.8,2740.6,0.124]
[1763811167858,0.34361053,2740.8,2740.7,0.4823]
[1763811168108,0.4857,2740.7,2740.6,0.124]
[1763811168283,0.90699264,2740.6,2740.3,0.001]
[1763811168771,1.36989264,2740.6,2740.3,0.001]
[1763811168955,0.90699264,2740.6,2740.3,0.001]
[1763811169909,0.002,2740.8,2740.5,0.4823]
[1763811170107,0.343686,2740.8,2740.7,0.4823]
[1763811170613,0.343686,2740.8,2740.5,0.4674]
[1763811170614,0.343686,2740.8,2740.3,0.001]
[1763811170773,0.343686,2740.8,2740.4,0.4674]
[1763811172080,0.343686,2740.8,2740.3,0.001]
[1763811172286,0.8426847,2740.8,2740.3,0.4684]
[1763811172485,0.341686,2740.7,2740.3,0.001]
[1763811172799,0.341686,2740.7,2740.3,0.4684]
[1763811173099,0.341686,2740.7,2740.3,0.001]
[1763811173296,0.343686,2740.8,2740.3,0.4684]
[1763811173468,1.3518747,2740.8,2740.3,0.001]
[1763811173668,0.341686,2740.7,2740.3,0.001]
[1763811174102,0.804586,2740.7,2740.3,0.001]
[1763811174297,0.341686,2740.6,2740.3,0.001]
[1763811174999,0.341686,2740.6,2740.5,0.4823]
[1763811175213,0.341686,2740.7,2740.3,0.001]
[1763811175418,0.806586,2740.8,2740.3,0.001]
[1763811175583,0.341686,2740.7,2740.3,0.001]
[1763811175778,0.341686,2740.7,2740.3,0.4684]
[1763811176018,0.343686,2740.8,2740.6,0.4823]
[1763811176396,0.4857,2740.7,2740.3,0.4684]
[1763811176913,0.002,2740.8,2740.6,0.4823]
[1763811177117,0.34369309,2740.8,2740.6,0.4823]
[1763811178945,0.90699264,2740.7,2740.6,0.4823]
[1763811179083,1.24868573,2740.7,2740.6,0.4823]
[1763811180324,1.24868573,2740.7,2740.3,0.001]
[1763811180524,1.39269264,2740.7,2740.3,0.4684]
[1763811181117,3.48808353,2740.6,2740.3,0.001]
[1763811181482,0.90699264,2740.7,2740.5,0.4823]
[1763811182518,0.90699264,2740.7,2740.6,0.4823]
[1763811182733,0.002,2740.8,2740.6,0.4823]
[1763811182935,0.2183,2740.7,2740.3,0.001]
[1763811183117,0.4831,2740.4,2740.3,0.001]
[1763811185413,3.48808353,2740.5,2740.3,0.001]
[1763811185742,0.90699264,2740.6,2740.4,0.4823]
[1763811186102,0.90699264,2740.6,2740.5,0.4001]
[1763811186499,0.90699264,2740.6,2740.5,0.8871]
[1763811188298,0.90699264,2740.6,2740.5,0.4001]
[1763811188499,1.39109264,2740.6,2740.5,0.124]
[1763811190250,1.39109264,2740.6,2740.5,0.074]
[1763811190558,1.39109264,2740.6,2740.5,0.075]
[1763811190737,1.39309264,2740.6,2740.5,0.075]
[1763811190937,0.90899264,2740.6,2740.5,0.075]
[1763811191234,1.39309264,2740.6,2740.5,0.075]
[1763811191531,0.002,2740.6,2740.5,0.5251]
[1763811193058,0.002,2740.6,2740.5,1.0121]
[1763811193260,0.002,2740.6,2740.5,4.50018353]
[1763811193557,0.002,2740.6,2740.5,0.9621]
[1763811195157,0.002,2740.6,2740.5,0.99858969]
[1763811196252,0.002,2740.6,2740.5,0.9621]
[1763811196641,0.002,2740.6,2740.5,0.99858969]
[1763811197358,0.002,2740.6,2740.5,0.9621]
[1763811199965,0.002,2740.6,2740.5,0.99858969]
[1763811200973,0.002,2740.6,2740.5,0.9621]
[1763811201161,0.002,2740.6,2740.5,0.99858969]
[1763811201964,0.002,2740.6,2740.5,12.89973286]
[1763811202166,0.002,2741.0,2740.5,12.89973286]
[1763811202167,0.002,2741.0,2740.8,0.405504]
[1763811202460,0.81,2741.9,2741.1,0.405504]
[1763811202664,0.57240514,2742.3,2741.8,0.4501]
[1763811202665,1.38240514,2742.3,2741.8,0.4501]
[1763811202887,1.38240514,2742.3,2741.5,3.48808353]
[1763811202888,1.38240514,2742.3,2742.2,0.4501]
[1763811203059,1.38240514,2742.3,2742.2,0.5741]
[1763811203267,1.38240514,2742.3,2741.2,0.1647]
[1763811203268,3.22559778,2742.3,2741.2,0.1647]
[1763811203464,3.48808353,2741.7,2741.3,0.124]
[1763811204008,0.1954,2741.9,2741.3,0.124]
[1763811204164,0.90699264,2742.0,2741.6,0.4501]
[1763811204768,1.35909264,2742.0,2741.6,0.4501]
[1763811205906,1.35909264,2742.0,2741.3,0.611]
[1763811206109,0.6475,2741.9,2741.3,0.611]
[1763811207605,0.6475,2741.9,2741.3,0.124]
[1763811207792,4.13558353,2741.9,2741.3,0.124]
[1763811212521,0.4521,2741.8,2741.3,0.124]
[1763811212810,1.02453107,2741.8,2741.3,0.124]
[1763811213216,1.64141724,2741.8,2741.3,0.124]
[1763811213415,0.4521,2741.7,2741.3,0.124]
[1763811213782,1.18931724,2741.8,2741.3,0.124]
[1763811213981,1.64141724,2741.8,2741.3,0.124]
[1763811214282,1.64141724,2741.8,2741.3,0.611]
[1763811214479,1.18931724,2741.8,2741.3,0.611]
[1763811214697,1.18931724,2741.8,2741.4,0.487]
[1763811214892,0.57243107,2741.8,2741.4,0.387]
[1763811215215,0.57243107,2741.8,2741.7,0.4501]
[1763811216019,0.002,2742.0,2741.7,0.4501]
[1763811216318,0.002,2742.0,2741.9,0.4721]
[1763811216901,0.002,2742.0,2741.9,0.9584]
[1763811218419,0.002,2742.0,2741.9,0.4852]
[1763811218947,0.4821,2742.0,2741.8,0.124]
[1763811219240,0.5428,2741.9,2741.8,0.124]
[1763811219595,0.9969,2741.9,2741.8,0.124]
[1763811223248,0.002,2742.0,2741.8,0.124]
[1763811223547,0.4801,2741.9,2741.8,0.124]
[1763811224150,0.9342,2741.9,2741.8,0.124]
[1763811225385,0.002,2742.0,2741.8,0.6092]
[1763811225923,0.4801,2741.9,2741.8,0.124]
[1763811226563,1.05250553,2741.9,2741.8,0.124]
[1763811227031,0.57240553,2741.9,2741.8,0.124]
[1763811227908,1.05250553,2741.9,2741.8,0.124]
[1763811229631,0.57240553,2741.9,2741.8,0.6092]
[1763811230032,0.002,2742.0,2741.8,0.6092]
[1763811230365,0.002,2742.0,2741.9,0.4852]
[1763811232672,0.4821,2742.0,2741.8,0.124]
[1763811232848,0.4801,2741.9,2741.8,0.124]
[1763811233241,0.002,2742.0,2741.8,0.124]
[1763811233452,0.002,2742.0,2741.8,0.074]
[1763811234383,0.002,2742.0,2741.9,0.4852]
[1763811234684,0.002,2742.0,2741.8,0.074]
[1763811235130,0.4801,2741.9,2741.8,0.074]
[1763811235749,0.002,2742.0,2741.8,0.5592]
[1763811235985,0.002,2742.0,2741.9,0.4852]
[1763811237055,0.002,2742.0,2741.9,0.9715]
[1763811240165,0.002,2742.0,2741.8,0.074]
[1763811240166,0.4821,2742.0,2741.8,0.074]
[1763811240372,0.002,2742.0,2741.9,0.4852]
[1763811241200,0.9362,2742.0,2741.8,0.074]
[1763811241410,0.4801,2741.9,2741.8,0.074]
[1763811241561,2.02789264,2741.9,2741.8,0.074]
[1763811241761,0.90699264,2741.9,2741.8,0.074]
[1763811241982,1.1209,2741.9,2741.8,0.074]
[1763811242772,0.6668,2741.9,2741.8,0.074]
[1763811243384,1.1209,2741.9,2741.8,0.074]
[1763811244108,1.38112749,2741.9,2741.8,0.074]
[1763811246274,6.83088377,2741.9,2741.4,0.001]
[1763811246587,1.40419264,2741.8,2741.4,0.001]
[1763811246775,1.25692749,2741.9,2741.4,0.001]
[1763811247296,0.4808,2741.5,2741.4,0.001]
[1763811247676,0.978,2741.5,2741.4,0.001]
[1763811248182,0.4808,2741.5,2741.4,0.001]
[1763811249781,1.05324258,2741.5,2741.4,0.001]
[1763811250303,1.55044258,2741.5,2741.4,0.001]
[1763811251821,1.05324258,2741.5,2741.4,0.001]
[1763811252924,0.57244258,2741.5,2741.4,0.4774]
[1763811253424,0.57244258,2741.5,2741.4,0.001]
[1763811254792,1.05324258,2741.5,2741.4,0.001]
[1763811255495,0.57244258,2741.5,2741.4,0.001]
[1763811255697,0.57244258,2741.5,2741.4,0.4774]
[1763811259907,1.4939,2741.9,2741.4,0.4774]
[1763811260107,0.4972,2741.8,2741.4,0.4774]
[1763811260303,0.4972,2741.8,2741.5,0.03647638]
[1763811260304,0.002,2741.8,2741.5,0.03647638]
[1763811260722,0.002,2741.8,2741.7,0.4764]
[1763811260927,0.812,2741.8,2741.7,0.4764]
[1763811261225,0.812,2741.8,2741.7,0.9637]
[1763811262418,0.812,2741.8,2741.7,0.4764]
[1763811262625,0.812,2741.8,2741.7,0.9637]
[1763811264712,0.812,2741.8,2741.7,1.0877]
[1763811265852,1.2928,2741.8,2741.7,0.124]
[1763811266252,1.98791,2741.8,2741.7,0.124]
[1763811267247,0.812,2741.8,2741.7,0.6004]
[1763811268353,0.812,2741.8,2741.7,1.0877]
[1763811272153,0.812,2741.8,2741.7,1.52967772]
[1763811272317,0.812,2741.8,2741.7,1.493204]
[1763811273243,0.812,2741.8,2741.7,5.22596764]
[1763811274846,0.812,2741.8,2741.7,1.493204]
[1763811275661,0.812,2741.8,2741.7,1.475304]
[1763811281072,0.812,2741.8,2741.7,1.0652]
[1763811281273,0.812,2741.8,2741.7,1.470704]
[1763811282011,0.812,2741.8,2741.7,1.04237772]
[1763811282197,0.812,2741.8,2741.7,1.470704]
[1763811283873,0.812,2741.8,2741.7,1.005904]
[1763811287807,1.2849,2741.8,2741.7,0.124]
[1763811288014,1.7409,2741.8,2741.7,0.124]
[1763811288718,0.812,2741.8,2741.7,0.5918]
[1763811289075,1.2849,2741.8,2741.7,0.124]
[1763811290482,1.7409,2741.8,2741.7,0.124]
[1763811295416,1.2849,2741.8,2741.7,0.124]
[1763811295620,0.812,2741.8,2741.7,0.124]
[1763811296013,0.812,2741.8,2741.7,0.5918]
[1763811297700,1.2849,2741.8,2741.7,0.124]
[1763811298222,0.812,2741.8,2741.7,0.5918]
[1763811298611,1.2849,2741.8,2741.7,0.124]
[1763811299917,0.812,2741.8,2741.7,1.0566]
[1763811300723,0.812,2741.8,2741.7,1.462104]
[1763811301116,1.7409,2741.8,2741.6,0.001]
[1763811301316,1.0075,2741.7,2741.6,0.001]
[1763811301611,1.3615,2741.7,2741.6,0.125]
[1763811301788,1.004,2741.7,2741.6,0.5928]
[1763811301986,1.9329,2741.7,2741.6,0.125]
[1763811305330,0.81,2741.7,2741.6,0.5928]
[1763811305514,0.81,2741.7,2741.6,4.54249907]
[1763811306193,0.81,2741.7,2741.6,4.94800307]
[1763811306399,0.81,2741.7,2741.6,4.98447812]
[1763811307397,0.81,2741.7,2741.6,0.5928]
[1763811307918,1.2791,2741.7,2741.6,0.125]
[1763811309097,0.81,2741.7,2741.6,0.125]
[1763811309503,0.81,2741.7,2741.6,0.585]
[1763811310026,1.2791,2741.7,2741.6,0.125]
[1763811310220,5.22879907,2741.7,2741.6,0.125]
[1763811310407,2.28626991,2741.7,2741.6,0.125]
[1763811311943,1.7439,2741.7,2741.6,0.125]
[1763811312360,1.2791,2741.7,2741.6,0.125]
[1763811312739,1.7439,2741.7,2741.6,0.125]
[1763811315016,1.2791,2741.7,2741.6,0.125]
[1763811315247,0.81,2741.7,2741.6,0.585]
[1763811317543,0.81,2741.7,2741.6,1.071]
[1763811317945,0.81,2741.7,2741.6,0.585]
[1763811319055,1.2791,2741.7,2741.6,0.125]
[1763811319757,0.81,2741.7,2741.6,8.15938322]
[1763811319935,0.81,2741.7,2741.6,8.60890817]
[1763811320552,0.81,2741.7,2741.6,9.51590081]
[1763811321223,0.81,2741.7,2741.6,2.38349664]
[1763811321428,0.81,2741.7,2741.6,6.03100174]
[1763811322222,0.812,2741.8,2741.6,13.16340591]
[1763811322426,0.002,2742.0,2741.7,2.25849664]
[1763811322744,0.002,2742.0,2741.9,7.83530214]
[1763811322946,0.002,2742.0,2741.9,8.74229478]
[1763811323146,0.002,2742.1,2742.0,1.31249664]
[1763811323329,0.002,2742.1,2742.0,6.02946965]
[1763811324435,0.002,2742.1,2742.0,6.06593938]
[1763811324761,1.03690048,2743.5,2742.0,6.06593938]
[1763811324762,0.1891,2743.9,2742.1,0.405504]
[1763811324960,0.1891,2743.9,2743.4,3.94489907]
[1763811325167,0.1954,2744.2,2743.8,0.46]
[1763811325336,0.1954,2744.2,2743.9,0.124]
[1763811326467,1.22980048,2745.1,2743.9,0.124]
[1763811326468,0.1929,2744.4,2743.9,0.124]
[1763811327376,0.1929,2744.6,2743.9,0.61]
[1763811327668,1.22980048,2745.1,2744.0,0.405504]
[1763811327669,1.69460048,2745.1,2744.0,0.405504]
[1763811327886,1.69460048,2745.1,2744.0,0.891504]
[1763811327887,0.1929,2744.9,2744.0,0.891504]
[1763811328041,0.1929,2744.9,2744.0,0.405504]
[1763811328233,0.4648,2744.8,2744.0,0.405504]
[1763811329130,0.4648,2744.8,2744.2,0.405504]
[1763811329469,0.4691,2744.1,2743.3,0.486]
[1763811329667,0.4648,2744.8,2743.4,0.124]
[1763811329869,0.4648,2744.7,2743.1,0.486]
[1763811330074,0.4648,2744.7,2743.2,0.124]
[1763811330667,0.4648,2744.7,2743.3,0.405504]
[1763811330869,0.4648,2744.7,2743.2,0.124]
[1763811331034,0.4648,2744.7,2743.0,0.1514]
[1763811331035,0.4691,2743.3,2743.0,0.1514]
[1763811331236,0.90699264,2744.6,2743.1,0.3118551]
[1763811331437,0.1929,2743.7,2743.2,0.46]
[1763811331871,0.6577,2743.7,2743.2,0.46]
[1763811332073,0.4691,2743.3,2743.1,0.124]
[1763811332278,0.3535,2743.2,2743.1,0.124]
[1763811332635,0.8183,2743.2,2743.1,0.124]
[1763811333673,0.8183,2743.2,2742.0,0.90699264]
[1763811333951,0.4648,2743.1,2742.1,0.124]
[1763811334896,0.662,2742.2,2742.1,0.124]
[1763811335260,1.1268,2742.2,2742.1,0.124]
[1763811338262,1.1268,2742.2,2741.6,0.001]
[1763811338523,0.3535,2741.7,2741.6,0.001]
[1763811338674,0.3535,2741.7,2741.6,0.125]
[1763811338875,0.4979,2742.1,2741.6,0.125]
[1763811339180,0.4979,2742.1,2741.6,0.6062]
[1763811339693,0.1929,2742.2,2741.6,1.0935]
[1763811339894,0.64406223,2742.5,2741.6,1.0935]
[1763811339895,0.1949,2742.4,2741.7,0.405504]
[1763811340093,0.4979,2742.5,2741.7,0.44197772]
[1763811340417,0.1949,2742.6,2741.7,0.892804]
[1763811340827,0.4979,2742.8,2741.9,0.405504]
[1763811341004,0.4979,2742.6,2741.9,0.405504]
[1763811341478,0.4979,2742.6,2741.7,0.405504]
[1763811342175,0.4979,2742.6,2741.7,0.892804]
[1763811342402,0.4979,2742.6,2741.8,0.03647239]
[1763811342571,0.4979,2742.6,2741.8,0.52377239]
[1763811343434,0.1949,2743.0,2742.2,0.405504]
[1763811343588,0.1949,2743.0,2741.6,0.001]
[1763811343589,0.4979,2742.9,2741.6,0.001]
[1763811343793,0.4979,2742.9,2741.8,3.64723904]
[1763811344100,0.4979,2742.9,2741.9,1.31249664]
[1763811344299,0.4979,2742.9,2742.0,0.03646973]
[1763811344508,0.4979,2742.9,2742.0,0.52376973]
[1763811344807,0.4979,2742.9,2742.1,0.1197]
[1763811345839,0.64406223,2743.4,2742.8,0.4812]
[1763811345983,0.57214924,2743.9,2742.9,0.6052]
[1763811345984,0.6908,2743.7,2742.9,0.6052]
[1763811346185,0.6908,2743.7,2743.0,0.124]
[1763811346585,0.6908,2743.7,2743.1,0.1514]
[1763811347024,0.1929,2743.7,2743.1,0.1514]
[1763811347321,0.6908,2743.7,2743.1,0.1514]
[1763811347522,0.4979,2743.6,2743.0,0.124]
[1763811348141,0.1949,2743.8,2743.1,0.556904]
[1763811348340,0.1949,2743.8,2743.1,1.044204]
[1763811349198,0.4999,2744.1,2743.1,0.556904]
[1763811349431,0.4999,2744.1,2743.3,0.405504]
[1763811350952,0.002,2743.8,2743.3,0.405504]
[1763811352008,0.4999,2743.8,2743.3,0.405504]
[1763811352204,0.4999,2743.8,2743.4,0.124]
[1763811353912,0.002,2743.8,2743.4,0.124]
[1763811354823,0.002,2743.8,2743.4,0.6113]
[1763811355868,0.4956,2743.5,2743.4,0.124]
[1763811356164,0.002,2743.8,2743.4,0.6052]
[1763811356535,0.4999,2743.8,2743.4,0.6052]
[1763811356939,0.4999,2743.8,2743.7,0.886704]
[1763811356940,0.002,2743.8,2743.7,0.886704]
[1763811357230,0.002,2743.8,2743.7,1.374004]
[1763811358320,0.002,2743.8,2743.7,5.01871734]
[1763811358515,0.002,2743.8,2743.7,5.96215711]
[1763811358749,0.002,2743.8,2743.7,5.92570998]
[1763811360068,0.002,2743.8,2743.7,2.28099664]
[1763811360783,0.002,2743.8,2743.7,1.79369664]
[1763811361059,0.4976,2743.8,2743.7,0.124]
[1763811361421,0.9955,2743.8,2743.7,0.124]
[1763811361823,0.002,2743.8,2743.7,0.6052]
[1763811362134,0.002,2743.8,2743.7,1.498004]
[1763811362460,0.002,2743.8,2743.7,6.08615711]
[1763811362766,0.002,2743.8,2743.7,6.04970998]
[1763811363766,0.002,2743.8,2743.7,6.08615711]
[1763811364265,0.002,2743.8,2743.7,2.44144377]
[1763811364428,0.002,2743.8,2743.7,1.95414377]
[1763811364628,0.002,2743.8,2743.7,2.44144377]
[1763811365258,0.002,2743.8,2743.7,6.08615711]
[1763811365429,0.002,2743.8,2743.7,1.91769664]
[1763811365632,0.002,2743.8,2743.7,1.010704]
[1763811366140,0.002,2743.8,2743.7,6.01640998]
[1763811366541,0.002,2743.8,2743.7,6.05285711]
[1763811367335,0.002,2743.8,2743.7,2.37169664]
[1763811367545,0.002,2743.8,2743.7,2.28414377]
[1763811367745,0.002,2743.8,2743.7,2.37169664]
[1763811367944,0.002,2743.8,2743.7,1.54863977]
[1763811368165,0.002,2743.8,2743.7,2.40814377]
[1763811368639,0.002,2743.8,2743.7,2.37169664]
[1763811368838,0.002,2743.8,2743.7,6.01640998]
[1763811369039,0.002,2743.8,2743.7,6.05285711]
[1763811369270,0.002,2743.8,2743.7,6.19887901]
[1763811369679,0.002,2743.8,2743.7,6.16243188]
[1763811369885,0.002,2743.8,2743.7,6.19887901]
[1763811370168,0.002,2743.8,2743.7,6.16243188]
[1763811372932,0.002,2743.8,2743.7,2.39371854]
[1763811373133,0.002,2743.8,2743.7,6.16243188]
[1763811373333,0.002,2743.8,2743.7,6.19887901]
[1763811373734,0.002,2744.1,2743.8,1.31249664]
[1763811374056,0.002,2744.1,2744.0,0.892804]
[1763811374251,0.4893,2745.8,2744.0,5.64779664]
[1763811374469,0.4893,2745.8,2744.8,0.405504]
[1763811374684,0.1949,2746.1,2745.0,5.32579598]
[1763811374848,0.6842,2746.1,2745.0,0.405504]
[1763811375049,0.6842,2746.1,2745.2,0.405504]
[1763811375284,0.4893,2746.0,2745.2,0.405504]
[1763811375654,0.4893,2746.0,2745.3,0.124]
[1763811375852,0.4893,2746.0,2745.4,0.405504]
[1763811376377,0.4977,2745.5,2745.4,0.405504]
[1763811376588,0.4977,2745.5,2745.3,0.124]
[1763811376788,0.7907,2745.4,2744.8,0.903204]
[1763811376950,0.7907,2745.4,2744.9,0.124]
[1763811377281,0.4893,2745.3,2744.9,0.124]
[1763811378585,0.4977,2745.0,2744.9,0.124]
[1763811379078,0.987,2745.0,2744.9,0.124]
[1763811379277,0.1949,2746.1,2744.9,0.124]
[1763811379478,0.4893,2745.7,2744.9,0.6113]
[1763811381377,0.4893,2745.7,2744.9,0.124]
[1763811381592,0.4977,2745.0,2744.9,0.124]
[1763811381765,0.4977,2745.0,2744.9,0.529504]
[1763811382122,0.1949,2746.1,2745.0,0.405504]
[1763811382241,0.6842,2746.1,2745.2,0.405504]
[1763811382446,0.6842,2746.1,2745.3,0.124]
[1763811382641,0.1949,2746.1,2745.4,0.405504]
[1763811382864,0.1949,2746.1,2745.4,1.31249664]
[1763811383287,0.4893,2746.3,2745.4,1.76649664]
[1763811383701,0.4893,2746.3,2745.5,0.454]
[1763811383862,0.4893,2746.3,2745.4,0.405504]
[1763811384402,0.4893,2746.2,2745.4,0.405504]
[1763811384887,0.4893,2746.2,2745.2,0.90699264]
[1763811385046,0.4893,2746.2,2744.6,0.454]
[1763811385248,0.4893,2746.2,2744.5,4.92029198]
[1763811385249,0.4893,2746.2,2744.7,0.16043385]
[1763811385447,0.4893,2746.2,2745.0,0.90699264]
[1763811385701,0.4893,2746.2,2745.1,0.529504]
[1763811386519,0.4977,2745.2,2744.5,9.01794291]
[1763811386698,0.002,2746.1,2745.0,0.90699264]
[1763811386899,0.002,2746.1,2745.2,0.405504]
[1763811387120,0.002,2746.1,2745.4,1.31249664]
[1763811387398,0.002,2746.1,2745.5,0.124]
[1763811387897,0.002,2746.1,2745.6,0.405504]
[1763811389604,0.002,2746.1,2745.6,4.04765353]
[1763811389933,0.002,2746.1,2745.6,0.859504]
[1763811390734,0.002,2746.1,2745.6,0.405504]
[1763811391447,0.002,2746.1,2746.0,0.892804]
[1763811391598,0.002,2746.1,2746.0,1.016804]
[1763811391954,0.002,2746.1,2746.0,0.405504]
[1763811392099,0.002,2746.1,2746.0,0.124]
[1763811392927,0.002,2746.1,2745.2,0.454]
[1763811392928,0.4997,2746.1,2745.2,0.454]
[1763811393131,0.989,2746.1,2745.3,0.124]
[1763811393332,0.989,2746.1,2745.3,0.03642589]
[1763811393509,0.989,2746.1,2745.2,1.36099264]
[1763811393510,0.4893,2746.0,2745.4,0.124]
[1763811393910,0.4977,2745.5,2744.7,4.92029198]
[1763811394110,0.3182,2745.3,2744.8,0.124]
[1763811394305,0.4893,2745.8,2744.8,0.124]
[1763811394531,0.4893,2745.7,2744.8,0.124]
[1763811394836,0.4893,2745.7,2744.9,0.124]
[1763811395144,0.4893,2745.7,2745.0,0.124]
[1763811397039,0.4893,2745.7,2744.4,1.31249664]
[1763811397040,0.486,2745.1,2744.4,0.90699264]
[1763811397555,0.486,2745.1,2744.5,0.1604365]
[1763811397751,0.486,2745.1,2744.5,0.124]
[1763811398754,0.1864,2745.9,2744.5,0.124]
[1763811398904,0.4682,2745.5,2744.6,0.405504]
[1763811399549,0.4682,2745.5,2744.6,0.892804]
[1763811402167,0.1864,2745.9,2745.4,0.458]
[1763811402367,0.6546,2745.9,2745.5,0.124]
[1763811402578,0.6546,2745.9,2744.8,0.405504]
[1763811402579,0.4931,2745.6,2744.8,0.405504]
[1763811402718,0.3437,2745.5,2745.0,0.405504]
[1763811404770,0.4682,2745.7,2744.9,1.31249664]
[1763811405082,0.4682,2745.5,2745.0,0.124]
[1763811405283,0.4702,2745.5,2745.0,0.124]
[1763811405447,0.002,2745.5,2745.4,0.458]
[1763811405637,0.002,2745.5,2745.4,0.582]
[1763811408367,0.002,2745.5,2745.4,0.124]
[1763811408563,0.4951,2745.5,2745.4,0.124]
[1763811409347,0.9633,2745.5,2745.4,0.124]
[1763811409879,0.4951,2745.5,2745.4,0.124]
[1763811412706,0.002,2745.5,2745.4,0.124]
[1763811415016,0.9633,2745.5,2745.4,0.124]
[1763811415530,0.002,2745.5,2745.4,0.124]
[1763811415882,0.002,2745.5,2745.4,0.987504]
[1763811416079,0.002,2745.5,2745.4,1.474804]
[1763811416822,0.002,2745.5,2745.4,5.11726047]
[1763811416982,0.002,2745.5,2745.4,1.474804]
[1763811417394,0.002,2745.5,2745.4,0.987504]
[1763811418129,0.002,2745.5,2745.4,1.474804]
[1763811420244,0.002,2745.5,2745.4,0.987504]
[1763811420475,0.9633,2745.5,2744.6,3.64351818]
[1763811420652,0.9633,2745.5,2744.7,1.51829264]
[1763811420807,0.002,2745.5,2745.4,0.458]
[1763811421010,0.002,2745.5,2745.4,0.987504]
[1763811421408,0.002,2745.5,2745.4,0.124]
[1763811421609,0.4951,2745.5,2745.4,0.124]
[1763811421851,0.9633,2745.5,2745.4,0.124]
[1763811424412,0.9633,2745.5,2745.0,0.001]
[1763811424612,0.4682,2745.4,2745.1,0.124]
[1763811425029,0.4931,2745.2,2745.1,0.124]
[1763811425442,0.9613,2745.2,2745.1,0.124]
[1763811433350,0.9613,2745.2,2745.0,0.001]
[1763811433557,0.7922,2745.1,2745.0,0.001]
[1763811439148,1.69919264,2745.1,2745.0,0.001]
[1763811439350,2.33377227,2745.1,2745.0,0.001]
[1763811439880,2.33377227,2745.1,2744.7,0.001]
[1763811440170,0.6874,2744.8,2744.7,0.001]
[1763811440541,1.1441,2744.8,2744.7,0.001]
[1763811442179,6.69769635,2744.8,2744.7,0.001]
[1763811442406,7.36746598,2744.8,2744.7,0.001]
[1763811442606,0.90699264,2744.7,2744.4,0.125]
[1763811442808,0.3391,2744.5,2744.4,0.125]
[1763811443189,0.7958,2744.5,2744.4,0.125]
[1763811443503,0.7958,2744.5,2744.4,0.001]
[1763811443722,1.36761954,2744.5,2744.4,0.001]
[1763811443874,1.42876522,2744.5,2744.4,0.001]
[1763811444075,1.42876522,2744.5,2743.8,0.001]
[1763811444306,1.39529264,2744.1,2743.8,0.001]
[1763811444675,1.85199264,2744.1,2743.8,0.001]
[1763811444876,0.4567,2744.3,2743.8,0.001]
[1763811445073,0.86736963,2744.8,2743.8,0.001]
[1763811445074,0.4567,2744.4,2743.8,0.001]
[1763811445674,0.4898,2744.1,2743.8,0.001]
[1763811446411,0.4567,2744.4,2743.8,0.001]
[1763811447407,0.4898,2744.1,2743.8,0.001]
[1763811447795,0.4567,2744.4,2743.8,0.001]
[1763811451218,0.6543,2744.8,2744.3,0.4873]
[1763811451421,0.6543,2744.8,2744.2,0.124]
[1763811451578,0.4567,2744.7,2744.2,0.124]
[1763811453609,0.4898,2744.3,2744.2,0.124]
[1763811453803,0.4567,2744.7,2744.2,0.124]
[1763811454315,0.1976,2744.8,2744.2,0.124]
[1763811454679,0.6543,2744.8,2744.2,0.124]
[1763811455905,0.4599,2744.7,2744.2,0.124]
[1763811457393,0.57175448,2744.6,2744.2,0.124]